Workbook

Sheet Bottle Beer Cost % Sample
A1: PURCHASES | D1: SALES
A2: Brand Category | B2: Cases Purchased per Week | C2: Average Cost per Case (24 Bottles) | D2: Happy Hour Bottle Beer Sales as a Percentage of Total Bottled Beer Sales | F2: Last Year's Bottle Beer Sales
A3: Domestic Bottles: | B3: 8 | C3: $17.00 | D3: 20% | F3: $58,750.00
A4: Imported Bottles: | B4: 3 | C4: $29.00
A6: CONTAINERS
A7: Bottle or Can Prices | B7: Domestic Happy Hour Price per Bottle | C7: Import Happy Hour Price per Bottle | D7: Domestic Regular Price per Bottle | E7: Import Regular Price per Bottle
B8: $3.00 | C8: $4.00 | D8: $5.00 | E8: $6.00
A10: CALCULATIONS
A11: Container Sizes | B11: Domestic Price | C11: Import Price | D11: Weighted Average Price | I11: Weighted Average Cost per Bottle | J11: Potential Sales per Week
A12: =A8 -> 0 | B12: =SUM(B8*D3)+(D8*(1-D3)) -> $4.60 | C12: =SUM(C8*D3)+(E8*(1-D3)) -> $5.60 | D12: =SUM(B12*H12)+(C12*(1-H12)) -> $4.87 | G12: Domestic % | H12: =SUM(B3/(B3+B4)) -> 73% | I12: =((C3/24*B3)+(C4/24*B4))/(B3+B4) -> $0.84 | J12: =((B3*24)*B12)+((B4*24)*C12) -> $1,286.40
D13: Potential Bottled Beer Cost Percentage: | F13: =I12/D12 -> 17.3%
A15: BOTTLED BEER LOSS ANALYSIS
A16: Bottled Beer Sales Potential Per Week: | D16: =J12 -> $1,286.40
A17: Bottled Beer Sales Potential Per Month: | D17: =D16*4.3 -> $5,531.52
A18: Bottled Beer Sales Potential Per Year: | D18: =D16*52 -> $66,892.80
A19: Bottled Beer Sales LOST Per Year: | D19: =F3-D18 -> -$8,142.80

Sheet Bottle Beer Cost % Worksheet
A1: PURCHASES | D1: SALES
A2: Brand Category | B2: Cases Purchased per Week | C2: Average Cost per Case (24 Bottles) | D2: Happy Hour Bottle Beer Sales as a Percentage of Total Bottled Beer Sales | F2: Last Year's Bottle Beer Sales
A3: Domestic Bottles:
A4: Imported Bottles:
A6: CONTAINERS
A7: Bottle or Can Prices | B7: Domestic Happy Hour Price per Bottle | C7: Import Happy Hour Price per Bottle | D7: Domestic Regular Price per Bottle | E7: Import Regular Price per Bottle
A10: CALCULATIONS
A11: Container Sizes | B11: Domestic Price | C11: Import Price | D11: Weighted Average Price | I11: Weighted Average Cost per Bottle | J11: Potential Sales per Week
A12: =A8 -> 0 | B12: =SUM(B8*D3)+(D8*(1-D3)) -> $0.00 | C12: =SUM(C8*D3)+(E8*(1-D3)) -> $0.00 | D12: =SUM(B12*H12)+(C12*(1-H12)) ->  | G12: Domestic % | H12: =SUM(B3/(B3+B4)) ->  | I12: =((C3/24*B3)+(C4/24*B4))/(B3+B4) ->  | J12: =((B3*24)*B12)+((B4*24)*C12) -> $0.00
D13: Potential Bottled Beer Cost Percentage: | F13: =I12/D12 -> 
A15: BOTTLED BEER LOSS ANALYSIS
A16: Bottled Beer Sales Potential Per Week: | D16: =J12 -> $0.00
A17: Bottled Beer Sales Potential Per Month: | D17: =D16*4.3 -> $0.00
A18: Bottled Beer Sales Potential Per Year: | D18: =D16*52 -> $0.00
A19: Bottled Beer Sales LOST Per Year: | D19: =F3-D18 -> $0.00
